bitfinex/quotes_ETHUSD_20230117
["timestamp","ask_amount","ask_price","bid_price","bid_amount"]
[1673967329513,0.57966,1583.2,1582.7,0.066]
[1673967329729,0.57966,1583.2,1582.7,0.064]
[1673967329894,0.4739,1583.1,1582.5,0.066]
[1673967330087,0.4739,1583.1,1582.4,32.47635]
[1673967330297,0.4739,1583.1,1582.4,35.11877407]
[1673967330508,0.4739,1583.1,1582.5,3.11662407]
[1673967330813,0.57966,1583.2,1582.6,4.39662407]
[1673967330979,0.691616,1583.2,1582.6,4.39662407]
[1673967331304,0.691616,1583.2,1582.5,2.8221]
[1673967331305,0.691616,1583.2,1582.5,1.348]
[1673967331520,7.007966,1583.2,1582.5,0.006]
[1673967331820,9.79085,1583.1,1582.4,24.4007]
[1673967331981,15.14392637,1583.1,1582.4,24.4007]
[1673967332190,5.57108873,1583.0,1582.4,0.066]
[1673967332418,1.282,1582.8,1582.4,0.052]
[1673967332642,8.07463,1582.7,1582.1,0.066]
[1673967332858,3.0,1582.6,1582.0,0.13184561]
[1673967333049,1.7561,1582.5,1582.0,0.13184561]
[1673967333239,1.17561,1582.4,1582.0,0.13184561]
[1673967333446,0.4742,1582.3,1582.0,0.16242561]
[1673967333660,0.24161,1582.4,1582.0,0.16242561]
[1673967333937,3.0,1582.6,1582.0,0.16242561]
[1673967334075,0.064,1582.7,1582.2,1.282]
[1673967334294,3.066,1582.9,1582.2,1.282]
[1673967334605,0.474,1582.9,1582.3,1.282]
[1673967334812,0.474,1582.9,1582.4,0.03057]
[1673967335024,4.343,1583.1,1582.4,3.46191348]
[1673967335025,0.474,1583.0,1582.4,3.46191348]
[1673967335274,0.4739,1583.1,1582.5,1.279]
[1673967335507,0.4739,1583.1,1582.4,3.93611348]
[1673967335508,26.51093922,1583.1,1582.4,0.052]
[1673967335717,14.0,1582.7,1582.0,0.13184561]
[1673967336033,1.8741,1582.6,1582.0,0.13184561]
[1673967336248,3.1541,1582.6,1582.0,0.13184561]
[1673967336391,1.279,1582.5,1582.0,0.13184561]
[1673967336707,0.4742,1582.4,1582.0,0.13184561]
[1673967337396,6.79374,1582.4,1582.0,0.13184561]
[1673967337605,0.679374,1582.3,1582.0,0.13184561]
[1673967337815,0.4742,1582.2,1582.0,0.13184561]
[1673967338541,0.066,1582.6,1582.0,0.13184561]
[1673967338738,0.066,1582.8,1582.1,0.4742]
[1673967338947,7.074166,1583.2,1582.2,13.64022]
[1673967339248,7.074166,1583.2,1582.3,6.79385]
[1673967339367,0.4739,1583.1,1582.3,6.80985]
[1673967339577,0.4739,1583.1,1582.4,1.277]
[1673967339952,0.4739,1583.1,1582.6,2.279]
[1673967340136,0.4739,1583.1,1582.6,2.18622]
[1673967340485,0.64566,1583.2,1582.5,6.7932]
[1673967340689,0.64566,1583.2,1582.5,4.88072407]
[1673967341002,0.64566,1583.2,1582.4,0.066]
[1673967341003,2.282,1583.0,1582.4,0.066]
[1673967341172,0.474,1582.9,1582.2,24.5724]
[1673967341360,0.016,1583.0,1582.3,8.0761]
[1673967341574,0.05,1583.1,1582.4,10.24374407]
[1673967341575,3.0,1583.1,1582.4,10.24374407]
[1673967341781,3.64566,1583.2,1582.5,4.39862407]
[1673967342047,3.64566,1583.2,1582.7,12.63619]
[1673967342048,0.57966,1583.2,1582.7,12.63619]
[1673967342266,0.57966,1583.2,1582.8,10.71629407]
[1673967342425,0.57966,1583.2,1582.9,3.59062407]
[1673967342638,0.57966,1583.2,1583.0,3.47568648]
[1673967342866,0.57966,1583.2,1583.0,9.79274648]
[1673967343088,0.57966,1583.2,1583.0,9.85874648]
[1673967343771,0.57966,1583.2,1583.1,3.11662407]
[1673967343986,30.576,1583.7,1583.1,5.39562407]
[1673967344195,30.576,1583.7,1583.2,3.65618648]
[1673967344457,30.576,1583.7,1583.3,3.11662407]
[1673967344458,0.066,1583.7,1583.3,3.11662407]
[1673967344671,0.014,1583.7,1583.3,3.11662407]
[1673967344841,1.0,1583.8,1583.2,6.92173241]
[1673967345040,0.4738,1583.7,1583.2,0.066]
[1673967345245,0.4238,1583.7,1583.1,17.10862]
[1673967345456,0.4238,1583.7,1583.1,20.22524407]
[1673967346089,3.11662407,1583.6,1583.1,0.066]
[1673967346355,3.11662407,1583.6,1582.6,30.0609]
[1673967346356,6.90208648,1583.5,1582.6,30.0609]
[1673967346579,8.47954222,1583.5,1582.6,30.1269]
[1673967346717,8.47954222,1583.5,1582.6,36.44561]
[1673967346718,10.75334414,1583.5,1582.6,36.44561]
[1673967346927,6.31562,1583.4,1582.6,36.44561]
[1673967347191,1.105462,1583.3,1582.6,40.769488]
[1673967347366,7.421422,1583.3,1582.6,40.769488]
[1673967347576,7.487422,1583.3,1582.6,40.769488]
[1673967347782,1.0,1583.2,1582.6,40.769488]
[1673967348013,0.4739,1583.1,1582.6,36.44561]
[1673967348221,0.4739,1583.1,1582.6,30.1269]
[1673967348455,0.697562,1583.3,1582.6,36.44561]
[1673967348624,14.07015607,1583.3,1582.6,30.1269]
[1673967348835,13.13015607,1583.3,1582.6,30.1269]
[1673967349047,1.78691561,1583.2,1582.6,30.1269]
[1673967349268,1.78691561,1583.2,1582.6,36.44561]
[1673967349475,1.78691561,1583.2,1582.6,30.1269]
[1673967349693,8.10332561,1583.2,1582.6,30.1269]
[1673967349905,8.16932561,1583.2,1582.6,30.1269]
[1673967350120,0.81693256,1583.1,1582.6,36.44561]
[1673967350379,0.4739,1583.2,1582.7,3.11662407]
[1673967350520,0.066,1583.5,1582.8,3.59062407]
[1673967350736,6.31512,1583.5,1582.8,12.63542]
[1673967351103,6.31512,1583.5,1582.8,9.50033407]
[1673967351104,0.066,1583.5,1582.8,9.50033407]
[1673967351271,0.066,1583.5,1582.9,0.474]
[1673967351272,0.4739,1583.4,1582.9,0.474]
[1673967351481,1.784316,1583.4,1582.8,0.54]
[1673967351710,8.099836,1583.4,1582.7,0.066]
[1673967351890,13.91404,1583.2,1582.6,23.8083]
[1673967352096,0.066,1583.2,1582.7,3.11662407]
[1673967352370,6.31605,1583.3,1582.7,6.79229]
[1673967352551,0.631605,1583.2,1582.7,6.38419]
[1673967352721,1.631605,1583.2,1582.7,0.066]
[1673967352936,7.947925,1583.2,1582.6,30.12668]
[1673967353180,7.013925,1583.2,1582.6,25.0883]
[1673967353408,7.013925,1583.2,1582.6,23.8083]
[1673967353616,1.1752925,1583.1,1582.6,30.12697]
[1673967353929,7.4920825,1583.1,1582.6,30.12697]
[1673967354148,7.5580825,1583.1,1582.6,23.8083]
[1673967354529,10.67470657,1583.1,1582.6,14.3614]
[1673967354736,2.282,1583.0,1582.6,0.066]
[1673967355072,2.282,1583.0,1582.3,31.22735]
[1673967355073,0.7022,1582.9,1582.3,31.29335]
[1673967355264,3.81882407,1582.9,1582.3,24.9738]
[1673967355459,1.282,1582.8,1582.3,24.9738]
[1673967355669,0.4741,1582.7,1582.3,24.9738]
[1673967356466,0.4741,1582.7,1582.3,14.9885]
[1673967356608,1.288106,1582.7,1582.3,14.9885]
[1673967356823,0.4741,1582.7,1582.3,14.9885]
[1673967357089,0.4741,1582.7,1582.3,0.066]
[1673967357290,9.90911407,1582.7,1582.1,10.48206121]
[1673967357620,14.24811407,1582.7,1582.1,10.48206121]
[1673967357766,2.279,1582.6,1582.1,0.36636121]
[1673967357977,0.702,1582.5,1582.1,0.30036121]
[1673967359767,1.702,1582.5,1582.1,0.30036121]
[1673967360132,1.28,1582.4,1582.1,0.30036121]
[1673967360346,1.282,1582.2,1582.1,0.30036121]
[1673967360532,6.15482407,1582.2,1582.1,0.30036121]
[1673967360705,20.77492648,1582.2,1582.1,0.30036121]
[1673967360935,23.00692648,1582.2,1582.1,0.30036121]
[1673967361144,4.45568241,1582.2,1582.1,0.30036121]
[1673967361531,21.42592648,1582.2,1582.1,0.30036121]
[1673967361676,21.49192648,1582.2,1582.1,0.30036121]
[1673967362248,3.14919265,1582.1,1582.0,0.13184561]
[1673967362566,23.89343672,1582.1,1582.0,0.13184561]
[1673967362739,12.00610265,1582.1,1582.0,0.13184561]
[1673967362954,12.01010265,1582.1,1582.0,0.13184561]
[1673967363176,0.066,1582.1,1582.0,0.13184561]
[1673967363371,0.066,1582.3,1582.0,0.13184561]
[1673967363576,3.11662407,1582.2,1582.0,0.13184561]
[1673967364032,15.75768407,1582.2,1582.0,0.13184561]
[1673967364242,3.11662407,1582.1,1582.0,0.13184561]
[1673967364413,17.38783248,1582.1,1582.0,0.13184561]
[1673967364613,17.45383248,1582.1,1582.0,0.13184561]
[1673967364822,17.68383248,1582.1,1582.0,0.13184561]
[1673967365186,8.01649841,1582.1,1582.0,4.561e-05]
[1673967365359,11.13312248,1582.1,1582.0,4.561e-05]
[1673967365554,29.39874248,1582.1,1582.0,4.561e-05]
[1673967366241,22.60383248,1582.1,1582.0,4.561e-05]
[1673967366467,20.68383248,1582.1,1582.0,4.561e-05]
[1673967366609,0.066,1582.1,1582.0,0.65704561]
[1673967366820,0.066,1582.2,1582.0,0.65704561]
[1673967367145,12.6407,1582.2,1582.0,4.561e-05]
[1673967367377,12.7067,1582.2,1582.0,4.561e-05]
[1673967367557,2.27067,1582.1,1582.0,4.561e-05]
[1673967367765,13.91209,1582.1,1582.0,4.561e-05]
[1673967367974,17.09471407,1582.1,1582.0,4.561e-05]
[1673967368198,17.32471407,1582.1,1582.0,4.561e-05]
[1673967368625,18.32471407,1582.1,1582.0,4.561e-05]
[1673967369148,21.32471407,1582.1,1582.0,4.561e-05]
[1673967369573,21.79891407,1582.1,1582.0,4.561e-05]
[1673967369753,20.79891407,1582.1,1582.0,4.561e-05]
[1673967370440,21.79891407,1582.1,1582.0,4.561e-05]
[1673967370662,20.79891407,1582.1,1582.0,4.561e-05]
[1673967370803,20.32471407,1582.1,1582.0,4.561e-05]
[1673967371278,20.79891407,1582.1,1581.9,0.00069722]
[1673967371497,44.41147899,1582.0,1581.5,0.07370808]
[1673967371658,3.11662407,1581.7,1581.5,0.07370808]
[1673967371868,25.78915407,1581.6,1581.5,0.07370808]
[1673967372101,25.38075407,1581.6,1581.5,0.07370808]
[1673967372763,29.42209215,1581.6,1581.5,0.07370808]
[1673967372928,29.00264329,1581.6,1581.5,0.07370808]
[1673967373776,29.47704329,1581.6,1581.5,0.07370808]
[1673967374169,33.51838137,1581.6,1581.5,0.07370808]
[1673967374413,33.51838137,1581.6,1581.5,0.00070808]
[1673967374628,35.43838137,1581.6,1581.5,0.00070808]
[1673967375026,57.43838137,1581.6,1581.5,0.00070808]
[1673967375804,57.43838137,1581.6,1581.5,0.00762168]
[1673967376068,31.39704329,1581.6,1581.5,0.00762168]
[1673967376234,30.69264329,1581.6,1581.5,0.00762168]
[1673967376446,31.16704329,1581.6,1581.5,0.00762168]
[1673967376826,3.066,1581.6,1581.5,0.00762168]
[1673967377209,3.11662407,1581.6,1581.5,0.00762168]
[1673967377338,15.76204407,1581.6,1581.5,0.00762168]
[1673967377555,0.066,1581.6,1581.5,0.00762168]
[1673967377818,17.99004407,1581.6,1581.5,0.00762168]
[1673967377965,20.49388848,1581.6,1581.5,0.00762168]
[1673967378174,22.49388848,1581.6,1581.5,0.00762168]
[1673967378449,3.066,1581.6,1581.5,0.66462168]
[1673967378752,0.066,1581.7,1581.5,0.66462168]
[1673967378962,0.066,1581.7,1581.5,0.00762168]
[1673967378963,9.38634,1581.7,1581.5,0.00762168]
[1673967379127,6.38634,1581.7,1581.5,0.00762168]
[1673967379333,6.38834,1581.7,1581.5,0.00762168]
[1673967379545,0.066,1581.7,1581.5,0.00762168]
[1673967379807,6.38783,1581.9,1581.5,0.00762168]
[1673967380003,7.86674414,1581.9,1581.5,0.00762168]
[1673967380415,0.066,1581.9,1581.5,0.00762168]
[1673967380633,7.65771,1582.1,1581.5,0.00762168]
[1673967380836,15.75921407,1582.0,1581.5,0.00762168]
[1673967381013,15.75967407,1581.9,1581.5,0.00762168]
[1673967381225,3.11662407,1581.8,1581.5,0.00762168]
[1673967381433,1.0,1581.6,1581.5,0.00762168]
[1673967381715,4.11662407,1581.6,1581.5,0.00762168]
[1673967382011,20.80338215,1581.6,1581.5,0.00762168]
[1673967382224,24.57178215,1581.6,1581.5,0.00762168]
[1673967382438,24.57378215,1581.6,1581.5,0.00762168]
[1673967382654,33.74652388,1581.6,1581.5,0.00062168]
[1673967382798,38.41680451,1581.6,1581.5,0.00062168]
[1673967383007,31.80080451,1581.6,1581.5,0.00062168]
[1673967383275,27.75946643,1581.6,1581.5,0.00062168]
[1673967384238,27.1227247,1581.6,1581.5,0.00062168]
[1673967385853,20.7283247,1581.6,1581.5,0.00062168]
[1673967386056,16.05804407,1581.6,1581.5,0.00062168]
[1673967386523,17.05804407,1581.6,1581.5,0.00062168]
[1673967386752,17.53244407,1581.6,1581.5,0.00062168]
[1673967387634,20.53244407,1581.6,1581.5,0.00062168]
[1673967388372,24.57378215,1581.6,1581.5,0.00062168]
[1673967388621,53.61666731,1581.6,1581.3,0.00137845]
[1673967388847,18.97053,1581.4,1581.3,0.00137845]
[1673967388992,23.62765407,1581.4,1581.3,0.00137845]
[1673967389209,25.85765407,1581.4,1581.3,0.00137845]
[1673967389646,25.38315407,1581.4,1581.3,0.00137845]
[1673967389852,27.96890948,1581.4,1581.3,0.00137845]
[1673967390681,28.44340948,1581.4,1581.3,0.00137845]
[1673967393513,29.37673491,1581.4,1581.3,0.00137845]
[1673967393775,27.96890948,1581.4,1581.3,0.00137845]
[1673967394678,28.90223491,1581.4,1581.3,0.00137845]
[1673967395507,30.30516573,1581.4,1581.3,0.00137845]
[1673967396147,28.90806125,1581.4,1581.3,0.00137845]
[1673967398572,30.31099207,1581.4,1581.3,0.00137845]
[1673967398818,29.84830273,1581.4,1581.3,0.00137845]
[1673967398989,31.25981327,1581.4,1581.3,0.00137845]
[1673967399199,29.84830273,1581.4,1581.3,0.00137845]
[1673967400911,31.73407232,1581.4,1581.3,0.00137845]
[1673967401083,41.61912359,1581.4,1581.3,0.00137845]
[1673967401453,47.39338572,1581.4,1581.3,0.00137845]
[1673967401613,1.0,1581.3,1581.2,0.07308653]
[1673967401821,28.63521648,1581.3,1581.2,8.653e-05]
[1673967402036,29.63517537,1581.3,1581.2,8.653e-05]
[1673967402353,36.25088394,1581.3,1581.2,8.653e-05]
[1673967402550,40.29222202,1581.3,1581.2,8.653e-05]
[1673967402765,48.01190624,1581.3,1581.2,8.653e-05]
[1673967402976,6.61791347,1581.1,1580.7,0.07808078]
[1673967403233,31.26931926,1580.8,1580.7,0.07808078]
[1673967403405,76.13484663,1580.8,1580.5,0.07420843]
[1673967403615,5.03662407,1580.6,1580.5,0.07420843]
[1673967403874,8.86618162,1580.6,1580.5,0.07420843]
[1673967404027,10.67354774,1580.6,1580.5,0.07420843]
[1673967404243,10.67354774,1580.6,1579.8,0.94559584]
[1673967404244,31.33389752,1580.6,1579.8,0.94559584]
[1673967404445,3.11662407,1580.4,1579.7,8.77059928]
[1673967404655,9.67485407,1580.3,1579.8,0.4749]
[1673967404937,9.74085407,1580.3,1579.8,0.4749]
[1673967405124,3.11662407,1580.2,1579.7,14.80810481]
[1673967405292,0.23,1580.1,1579.7,14.33310481]
[1673967405729,1.366,1580.3,1579.7,14.33310481]
[1673967405730,0.23,1580.2,1579.7,20.66336481]
[1673967405945,0.14227707,1580.2,1579.7,20.66336481]
[1673967406165,1.44227707,1580.2,1579.7,20.66336481]
[1673967406382,1.3,1580.2,1579.8,0.4749]
[1673967406569,36.90344,1580.5,1579.9,12.65891]
[1673967406779,3.11662407,1580.4,1580.0,0.4749]
[1673967407023,1.3,1580.2,1580.0,0.4749]
[1673967407232,9.51029407,1580.4,1579.8,9.29617389]
[1673967407451,0.066,1580.4,1579.8,9.29617389]
[1673967407600,1.3,1580.2,1579.9,0.92961739]
[1673967407813,8.53212,1580.5,1580.0,0.4749]
[1673967408017,3.11662407,1580.4,1580.0,0.4749]
[1673967408234,16.00251407,1580.3,1579.9,0.4749]
[1673967408454,4.71687548,1580.2,1579.8,0.4749]
[1673967408667,0.23,1580.1,1579.8,0.4749]
[1673967408906,0.23,1580.1,1579.7,14.80810481]
[1673967409066,0.23,1580.1,1579.7,21.13839481]
[1673967409282,1.3,1580.1,1579.7,27.46870481]
[1673967409500,1.3,1580.1,1579.7,30.85673877]
[1673967409736,6.39396,1580.3,1579.7,30.85673877]
[1673967410100,1.3,1580.1,1579.7,30.85673877]
[1673967410687,1.3,1580.1,1579.7,18.19613877]
[1673967410937,1.3,1580.1,1579.7,14.33310481]
[1673967411459,1.0,1580.0,1579.7,14.33310481]
[1673967411984,7.32921,1580.0,1579.7,14.33310481]
[1673967412196,15.02442,1580.0,1579.7,14.33310481]
[1673967412351,15.02442,1580.0,1579.8,1.57056539]
[1673967412561,1.366,1580.0,1579.8,2.51616123]
[1673967412770,1.3,1580.0,1579.8,2.51616123]
[1673967413033,1.3,1580.0,1579.9,0.94559584]
[1673967413246,1.3,1580.0,1579.9,2.51616123]
[1673967413926,0.066,1580.3,1579.9,15.59316402]
[1673967414136,2.0058157,1580.5,1580.0,3.45967386]
[1673967414384,13.5946557,1580.5,1580.0,11.2095179]
[1673967414556,3.11662407,1580.4,1580.0,7.0035995]
[1673967414760,4.11662407,1580.4,1580.0,3.52567386]
[1673967414971,17.71184977,1580.4,1580.0,2.5124045]
[1673967415187,5.28643977,1580.3,1580.0,2.5124045]
[1673967415408,22.10155407,1580.2,1580.0,2.5124045]
[1673967415642,16.00404407,1580.1,1580.0,2.5124045]
[1673967415815,19.03669205,1580.1,1580.0,2.5124045]
[1673967416464,20.33669205,1580.1,1580.0,2.5124045]
[1673967416888,21.33669205,1580.1,1580.0,2.5124045]
[1673967417091,20.33669205,1580.1,1580.0,2.5124045]
[1673967417768,21.33669205,1580.1,1580.0,2.5124045]
[1673967417991,1.0,1580.0,1579.8,0.066]
[1673967418132,5.49540866,1579.9,1579.7,0.08120481]
[1673967418506,3.11662407,1579.8,1579.7,0.08120481]
[1673967418651,19.48134407,1579.8,1579.7,0.08120481]
[1673967418861,19.54734407,1579.8,1579.7,0.08120481]
[1673967419191,24.57186315,1579.8,1579.7,0.08120481]
[1673967419400,24.77442084,1579.8,1579.7,0.08120481]
[1673967419649,24.54442084,1579.8,1579.7,0.08120481]
[1673967420018,21.54442084,1579.8,1579.7,0.08120481]
[1673967420326,13.20072,1579.8,1579.7,0.08120481]
[1673967420438,6.39591,1579.8,1579.7,0.08120481]
[1673967420650,6.29591,1579.8,1579.7,0.08120481]
[1673967420992,0.066,1579.8,1579.7,0.73820481]
[1673967421390,1.3,1579.8,1579.7,0.08120481]
[1673967421713,3.28188459,1580.1,1579.7,0.08120481]
[1673967421928,6.32953,1579.9,1579.7,0.08120481]
[1673967422182,0.066,1579.9,1579.7,0.08120481]
[1673967422626,12.72414,1580.1,1579.7,0.08120481]
[1673967422803,1.3,1580.0,1579.7,0.08120481]
[1673967422972,1.3,1580.0,1579.7,15.94167481]
[1673967423183,1.3,1580.0,1579.8,1.59416748]
[1673967423408,4.41662407,1580.0,1579.7,3.34720481]
[1673967423729,4.41662407,1580.0,1579.7,3.75620481]
[1673967423954,4.41662407,1580.0,1579.7,3.28120481]
[1673967424165,10.74574407,1580.0,1579.7,3.28120481]
[1673967424397,1.366,1580.0,1579.7,15.94166481]
[1673967424553,1.3,1580.0,1579.8,1.59416648]
[1673967425032,1.3,1580.0,1579.8,17.63987648]
[1673967425347,0.064,1580.4,1579.9,4.11662407]
[1673967425498,2.41571148,1580.6,1580.1,1.298]
[1673967425830,1.3,1580.3,1580.2,6.80308]
[1673967426039,1.3,1580.3,1580.2,8.312043]
[1673967426266,3.41571148,1580.7,1580.2,7.837243]
[1673967426478,1.3,1580.5,1580.2,7.837243]
[1673967427028,0.93988459,1580.6,1580.2,7.837243]
[1673967427501,0.93988459,1580.6,1580.2,7.837173]
[1673967427710,2.23988459,1580.7,1580.3,0.7837173]
[1673967428162,2.23988459,1580.7,1580.4,0.4748]
[1673967428547,2.23988459,1580.7,1580.3,1.2585173]
[1673967429015,0.93988459,1580.6,1580.3,0.4748]
[1673967429187,3.64971148,1580.7,1580.3,0.4748]
[1673967429397,0.93988459,1580.6,1580.3,0.4748]
[1673967429609,0.93988459,1580.6,1580.2,1.917763]
[1673967429875,13.59343459,1580.6,1580.1,1.5888]
[1673967430025,19.43588555,1580.6,1580.1,1.5228]
[1673967430388,6.32752,1580.4,1580.1,1.048]
[1673967430549,6.39352,1580.4,1580.1,1.048]
[1673967430753,9.44459407,1580.3,1580.1,1.048]
[1673967431017,0.94445941,1580.2,1580.1,1.048]
[1673967431175,3.359144,1580.2,1580.1,1.048]
[1673967431387,12.32927807,1580.2,1580.1,1.048]
[1673967431599,1.01045941,1580.2,1580.1,1.048]
[1673967431807,10.51853148,1580.3,1580.1,1.048]
[1673967432034,0.93988459,1580.2,1580.1,1.048]
[1673967432247,7.26819459,1580.2,1580.1,1.048]
[1673967432480,7.33419459,1580.2,1580.1,1.048]
[1673967432692,1.00588459,1580.2,1580.1,1.048]
[1673967432885,0.93988459,1580.2,1580.1,1.048]
[1673967433068,2.93620214,1580.2,1580.1,1.048]
[1673967433278,6.52276851,1580.2,1580.1,1.048]
[1673967433526,19.47538851,1580.2,1580.1,1.048]
[1673967433718,21.35473248,1580.2,1580.1,1.048]
[1673967434660,19.47538851,1580.2,1580.1,1.048]
[1673967435434,1.00330998,1580.2,1580.1,1.048]
[1673967435628,2.30330998,1580.3,1580.1,1.048]
[1673967435846,2.23730998,1580.3,1580.1,1.048]
[1673967436006,11.68186405,1580.3,1580.1,1.048]
[1673967436223,4.05393405,1580.2,1580.1,1.048]
[1673967436448,19.13163305,1580.2,1580.1,1.048]
[1673967436762,27.70026013,1580.2,1580.1,1.048]
[1673967436956,34.06781136,1580.2,1580.1,1.048]
[1673967437322,1.0,1580.1,1579.7,0.08120481]
[1673967437541,9.73262407,1579.8,1579.7,0.08120481]
[1673967437706,9.73262407,1579.8,1579.6,0.08120481]
[1673967437707,1.0,1579.7,1579.2,0.08691686]
[1673967437925,22.58435407,1579.6,1579.2,0.15291686]
[1673967438128,0.066,1579.6,1579.2,0.15291686]
[1673967438338,0.05,1579.6,1579.2,0.08691686]
[1673967438674,3.11662407,1579.6,1579.2,9.68307749]
[1673967438892,3.11662407,1579.6,1579.2,0.89877862]
[1673967439101,3.11662407,1579.6,1579.2,0.83277862]
[1673967439425,7.69637,1579.7,1579.2,0.83277862]
[1673967439426,1.366,1579.7,1579.2,7.16503862]
[1673967439639,1.3,1579.7,1579.2,14.03845862]
[1673967439951,1.3,1579.7,1579.3,7.73563586]
[1673967440111,1.3,1579.7,1579.3,7.80163586]
[1673967440570,1.3,1579.7,1579.5,1.916]
[1673967440807,1.3,1579.7,1579.6,12.66142]
[1673967441122,1.3,1579.7,1579.6,6.39671]
[1673967441596,1.3,1579.7,1579.6,0.723]
[1673967441810,1.3,1579.7,1579.6,0.657]
[1673967442031,1.302,1579.7,1579.6,1.553999]
[1673967442242,1.3,1579.7,1579.6,14.215419]
[1673967442434,0.175,1579.7,1579.6,14.754419]
[1673967442629,0.175,1579.7,1579.6,14.756419]
[1673967443946,2.40697079,1580.3,1579.6,22.44360135]
[1673967444096,12.78557486,1580.3,1579.7,7.98896948]
[1673967444312,10.38152588,1580.2,1579.8,0.4749]
[1673967444553,18.18061486,1580.2,1579.8,0.4749]
[1673967444763,0.93639181,1580.1,1579.7,15.5061]
[1673967445308,1.93639181,1580.1,1579.7,15.5061]
[1673967445843,3.11662407,1580.0,1579.7,15.5061]
[1673967446050,0.31166241,1579.9,1579.7,15.5061]
[1673967446624,1.31166241,1579.9,1579.7,15.5061]
[1673967447098,10.75786648,1579.9,1579.7,15.5061]
[1673967447416,3.11662407,1579.8,1579.7,0.066]
[1673967447630,18.59376171,1579.8,1579.3,15.1183]
[1673967447804,3.34662407,1579.7,1579.3,15.1843]
[1673967447989,9.67703407,1579.7,1579.3,15.1843]
[1673967448197,9.74303407,1579.7,1579.3,15.1843]
[1673967448461,3.11662407,1579.6,1579.3,15.1843]
[1673967448775,15.77850407,1579.6,1579.3,15.1843]
[1673967448986,15.84450407,1579.6,1579.3,15.1843]
[1673967449995,0.066,1579.6,1579.3,21.51621]
[1673967450196,2.49904617,1579.7,1579.3,21.51621]
[1673967450617,3.36652869,1579.6,1579.3,15.1843]
[1673967450986,9.69729869,1579.6,1579.3,15.1843]
[1673967451175,0.31590462,1579.6,1579.3,15.1843]
[1673967451370,0.24990462,1579.6,1579.3,15.1843]
[1673967452146,0.066,1579.7,1579.3,40.51191]
[1673967452297,6.39551,1579.9,1579.3,40.51191]
[1673967452510,9.51213407,1579.9,1579.3,40.51191]
[1673967453295,0.066,1579.9,1579.3,43.62853407]
[1673967453613,9.21118079,1580.0,1579.3,43.62853407]
[1673967453763,0.92111808,1579.9,1579.3,43.62853407]
[1673967453977,11.30364396,1579.9,1579.3,34.18]
[1673967454311,12.66086,1579.7,1579.3,15.1843]
[1673967454642,3.11662407,1579.6,1579.3,0.066]
[1673967454856,9.44773407,1579.5,1579.2,0.08691686]
[1673967455026,9.51373407,1579.5,1579.2,0.08691686]
[1673967455677,15.84484407,1579.5,1579.2,0.08691686]
[1673967456100,0.23,1579.4,1579.2,0.08691686]
[1673967456290,4.09099748,1579.4,1579.2,0.08691686]
[1673967456499,3.11662407,1579.4,1579.2,0.08691686]
[1673967456981,0.066,1579.5,1579.2,0.08691686]
[1673967457199,3.11662407,1579.5,1579.2,0.08691686]
[1673967457516,8.368006,1579.6,1579.2,0.08691686]
[1673967457517,0.4751,1579.4,1579.2,0.08691686]
[1673967457684,0.475,1579.5,1579.2,0.08691686]
[1673967457896,3.11662407,1579.4,1579.2,0.08691686]
[1673967458376,9.44829407,1579.4,1579.2,0.08691686]
[1673967458512,9.51429407,1579.4,1579.2,0.08691686]
[1673967459905,3.11662407,1579.3,1579.2,0.08691686]
[1673967460152,16.01044407,1579.3,1579.2,0.08691686]
[1673967460321,18.71716177,1579.3,1579.2,0.08691686]
[1673967460532,19.19226177,1579.3,1579.2,0.08691686]
[1673967460748,3.4118177,1579.3,1579.2,0.08691686]
[1673967461004,6.6053286,1579.5,1579.2,0.08691686]
[1673967461005,0.5411,1579.4,1579.2,0.08691686]
[1673967461176,0.475,1579.5,1579.2,0.08691686]
[1673967461704,0.066,1579.6,1579.2,0.08691686]
[1673967461935,0.066,1579.7,1579.2,6.41923686]
[1673967462164,0.002,1579.7,1579.2,12.81555686]
[1673967462594,1.00239181,1579.9,1579.3,1.28155569]
[1673967462757,7.26560181,1580.0,1579.4,12.66282]
[1673967462951,7.26590181,1579.9,1579.4,6.39743]
[1673967463159,7.26590181,1579.9,1579.4,12.72894]
[1673967463160,0.5409,1579.9,1579.4,12.72894]
[1673967463404,1.41129181,1580.0,1579.4,12.72894]
[1673967463579,1.41329181,1580.0,1579.4,12.72694]
[1673967463790,3.11662407,1579.9,1579.4,6.39743]
[1673967464242,9.44621407,1579.9,1579.4,6.39743]
[1673967464453,0.066,1579.9,1579.4,6.39743]
[1673967464792,7.80646181,1580.0,1579.4,6.39743]
[1673967465105,10.92308588,1580.0,1579.4,12.72894]
[1673967465438,1.47729181,1580.0,1579.5,7.603844]
[1673967465733,0.4749,1580.0,1579.5,7.669844]
[1673967466117,3.59152407,1580.0,1579.5,6.39695]
[1673967466480,4.34662407,1579.9,1579.5,0.063563]
[1673967466663,3.34662407,1579.9,1579.5,0.063563]
[1673967466875,4.34662407,1579.9,1579.5,0.002]
[1673967467054,5.28301588,1579.9,1579.5,0.002]
[1673967467259,0.52830159,1579.8,1579.5,0.002]
[1673967467473,14.18827159,1579.8,1579.5,0.002]
[1673967467716,14.18827159,1579.8,1579.3,15.581263]
[1673967467717,3.34662407,1579.7,1579.3,15.581263]
[1673967467884,3.11662407,1579.6,1579.3,15.581263]
[1673967468309,9.44735407,1579.6,1579.3,15.581263]
[1673967468529,5.47055348,1579.6,1579.3,15.581263]
[1673967468993,11.80134348,1579.6,1579.3,15.581263]
[1673967469163,0.475,1579.5,1579.3,15.581263]
[1673967469372,9.44781407,1579.5,1579.3,15.581263]
[1673967469584,9.51381407,1579.5,1579.3,15.581263]
[1673967469792,4.06800548,1579.4,1579.3,0.065563]
[1673967470038,4.06800548,1579.4,1579.2,0.08691686]
[1673967470670,1.00239181,1579.5,1579.2,0.08691686]
[1673967470883,0.541,1579.6,1579.2,6.41920686]
[1673967471212,0.475,1579.6,1579.2,6.48476986]
[1673967471755,0.475,1579.6,1579.2,12.81708986]
[1673967472125,0.475,1579.7,1579.2,12.81708986]
[1673967472337,0.4749,1579.8,1579.3,1.28170899]
[1673967472506,0.4749,1579.8,1579.4,12.66262]